Workbook

Sheet BExRepositorySheet (hidden)
A1: 7

Sheet Ingresos
A3: EMPRESA DE ACUEDUCTO ALCANTARILLADO DE BOGOTA
A4: EJECUCION PRESUPUESTAL DE INGRESOS
A5: A 31 DE MARZO DE 2020
C6: 1 | D6: 2 | E6: 3 | F6: 4 | G6: 5 | H6: 6 | I6: 7=(6/4) | J6: 8=(4-6)
A7: CODIGO SECRETARIA DE HACIENDA | B7: RUBRO | C7: PRESUPUESTO INICIAL | D7: MODIFICACIONES MES | E7: MODIFICACIONES ACUMULADAS | F7: PRESUPUESTO DEFINITIVO | G7: RECAUDOS MES | H7: RECAUDOS ACUMULADOS | I7: % EJEC PPTAL | J7: SALDO POR RECAUDAR
A8: TOTAL INGRESOS + DISPONIBILIDAD INICIAL | C8: 5839715601000 | F8: 5839715601000 | G8: 120333057991 | H8: 1346887208034 | I8: 0.2306426032 | J8: 4492828392966
A9: 310000000000000 | B9: DISPONIBILIDAD INICIAL | C9: 767299231000 | F9: 767299231000 | H9: 767299231000 | I9: 1
A10: 310000000000000 | B10: DISPONIBILIDAD INICIAL | C10: 767299231000 | F10: 767299231000 | H10: 767299231000 | I10: 1
A11: 320000000000000 | B11: INGRESOS | C11: 5072416370000 | F11: 5072416370000 | G11: 120333057991 | H11: 579587977034 | I11: 0.1142626975 | J11: 4492828392966
A12: 321000000000000 | B12: INGRESOS CORRIENTES | C12: 2820980097000 | F12: 2820980097000 | G12: 145820232675 | H12: 455871945509 | I12: 0.1616005536 | J12: 2365108151491
A13: 321010000000000 | B13: INGRESOS DE EXPLOTACION | C13: 1891699605000 | F13: 1891699605000 | G13: 145807851075 | H13: 455834837767 | I13: 0.2409657625 | J13: 1435864767233
A14: 321010200000000 | B14: VENTA DE SERVICIOS | C14: 1867900061000 | F14: 1867900061000 | G14: 143533520777 | H14: 440793349218 | I14: 0.2359833689 | J14: 1427106711782
A15: 321010201000000 | B15: SERVICIO ACUEDUCTO | C15: 957909591000 | F15: 957909591000 | G15: 72128008644 | H15: 223893812266 | I15: 0.233731674 | J15: 734015778734
A16: 321010202000000 | B16: SERVICIO ALCANTARILLADO | C16: 909990470000 | F16: 909990470000 | G16: 71405512133 | H16: 216899536952 | I16: 0.2383536357 | J16: 693090933048
A17: 321019900000000 | B17: OTROS INGRESOS DE EXPLOTACION | C17: 23799544000 | F17: 23799544000 | G17: 2274330298 | H17: 15041488549 | I17: 0.6320074262 | J17: 8758055451
A18: 321019902000000 | B18: INTERESES A USUARIOS | C18: 2987672000 | F18: 2987672000 | G18: 487670651 | H18: 3658511942 | I18: 1.224536007 | J18: -670839942
A19: 321019903000000 | B19: PUBLICACIONES | C19: 6794000 | F19: 6794000 | G19: 1763463 | H19: 5674378 | I19: 0.8352042979 | J19: 1119622
A20: 321019904000000 | B20: SERVICIOS | C20: 529000000 | F20: 529000000 | G20: 19919862 | H20: 107232537 | I20: 0.2027080095 | J20: 421767463
A21: 321019905000000 | B21: CUOTAS PARTES PENSIONALES | G21: 72221004 | H21: 276256824 | J21: -276256824
A22: 321019906000000 | B22: EXTRAORDINARIOS RECUPERACIÓN | G22: 443422640 | H22: 6828281586 | J22: -6828281586
A23: 321019907000000 | B23: INGRESOS CENTRAL HIDROELÉCTRICA | C23: 10889390000 | F23: 10889390000 | G23: 759968730 | H23: 2204907184 | I23: 0.2024821578 | J23: 8684482816
A24: 321019908000000 | B24: SANCIONES Y MULTAS | H24: 2991480 | J24: -2991480
A25: 321019909000000 | B25: COMISIONES | C25: 9386688000 | F25: 9386688000 | G25: 489363948 | H25: 1957632618 | I25: 0.2085541373 | J25: 7429055382
A26: 321020000000000 | B26: OTROS INGRESOS CORRIENTES | C26: 929280492000 | F26: 929280492000 | G26: 12381600 | H26: 37107742 | I26: 3.993169158e-05 | J26: 929243384258
A27: 321020100000000 | B27: RENTAS CONTRACTUALES | C27: 929280492000 | F27: 929280492000 | G27: 12381600 | H27: 37107742 | I27: 3.993169158e-05 | J27: 929243384258
A28: 321020199000000 | B28: OTRAS RENTAS CONTRACTUALES | C28: 929280492000 | F28: 929280492000 | G28: 12381600 | H28: 37107742 | I28: 3.993169158e-05 | J28: 929243384258
A29: 322000000000000 | B29: TRANSFERENCIAS | C29: 244494114000 | F29: 244494114000 | H29: 11738548682 | I29: 0.04801157987 | J29: 232755565318
A30: 322030000000000 | B30: MUNICIPIOS | C30: 2068000000 | F30: 2068000000 | J30: 2068000000
A31: 322030000000000 | B31: MUNICIPIOS | C31: 2068000000 | F31: 2068000000 | J31: 2068000000
A32: 322040000000000 | B32: ADMINISTRACION CENTRAL | C32: 242426114000 | F32: 242426114000 | H32: 11738548682 | I32: 0.04842113949 | J32: 230687565318
A33: 322040300000000 | B33: SECRETARIA DISTRITAL DE HACIENDA | C33: 78525000000 | F33: 78525000000 | G33: -11738548682 | J33: 78525000000
A34: 322040500000000 | B34: SDH - MÍNIMO VITAL | C34: 73823345000 | F34: 73823345000 | J34: 73823345000
A35: 322040600000000 | B35: SDH - LEY 99 DE 1993 | C35: 90077769000 | F35: 90077769000 | J35: 90077769000
A36: 322040800000000 | B36: LEY 99 DE 1993, SUBSIDIOS Y MÍNIMO VITAL - VIGENCIA ANTERIOR | G36: 11738548682 | H36: 11738548682 | J36: -11738548682
A37: 323000000000000 | B37: RECURSOS DE CAPITAL | C37: 2006942159000 | F37: 2006942159000 | G37: -25487174684 | H37: 111977482843 | I37: 0.05579507229 | J37: 1894964676157
A38: 323010000000000 | B38: RECURSOS DEL CREDITO | C38: 1689330396000 | F38: 1689330396000 | J38: 1689330396000
A39: 323010100000000 | B39: CREDITO INTERNO | C39: 1689330396000 | F39: 1689330396000 | J39: 1689330396000
A40: 323010101000000 | B40: VIGENCIA | C40: 1689330396000 | F40: 1689330396000 | J40: 1689330396000
A41: 323020000000000 | B41: RENDIMIENTOS POR OPERACIONES FINANCIERAS | C41: 72159584000 | F41: 72159584000 | G41: -25931419832 | H41: -5176697121 | I41: -0.07173956437 | J41: 77336281121
A42: 323020000000000 | B42: RENDIMIENTOS POR OPERACIONES FINANCIERAS | C42: 72159584000 | F42: 72159584000 | G42: -25931419832 | H42: -5176697121 | I42: -0.07173956437 | J42: 77336281121
A43: 323090000000000 | B43: OTROS RECURSOS DE CAPITAL | C43: 245452179000 | F43: 245452179000 | G43: 444245148 | H43: 117154179964 | I43: 0.477299409 | J43: 128297999036
A44: 323090100000000 | B44: RECUPERACION PRESTAMOS - BIENESTAR | C44: 10700000000 | F44: 10700000000 | G44: 441058718 | H44: 1635688979 | I44: 0.1528681289 | J44: 9064311021
A45: 323090200000000 | B45: INDEMNIZACIONES COMPAÑIAS DE SEGURO | G45: 3186430 | H45: 16141985 | J45: -16141985
A46: 323090300000000 | B46: RECURSOS FIDUCIA | C46: 119249830000 | F46: 119249830000 | J46: 119249830000
A47: 323099900000000 | B47: OTROS | C47: 115502349000 | F47: 115502349000 | H47: 115502349000 | I47: 1

Sheet Gastos
A2: EMPRESA DE ACUEDUCTO ALCANTARILLADO DE BOGOTA
A3: EJECUCION PRESUPUESTAL DE GASTOS
A4: A 31 DE MARZO DE 2020 | C4: 1 | D4: 2 | E4: 3 | F4: 4=(1+3) | G4: 5 | H4: 6=(4-5) | I4: 7 | J4: 8 | K4: 9=(8/6) | L4: 11 | M4: 12 | N4: 13=(12/6)
A5: CODIGO SECRETARIA DE HACIENDA | B5: RUBRO | C5: PRESUPUESTO INICIAL | D5: MODIFICACIONES MES | E5: MODIFICACIONES ACUMULADAS | F5: PRESUPUESTO DEFINITIVO | G5: SUSPENSION | H5: APROPIACION DISPONIBLE | I5: COMPROMISOS MES | J5: COMPROMISOS ACUMULADOS | K5: % EJEC PPTAL | L5: AUTORIZACIONES DE GIRO | N5: % EJEC AUT. GIRO
L6: MES | M6: ACUMULADO
A7: TOTAL GASTOS + DISPONIBILIDAD FINAL | C7: 5839715601000 | F7: 5839715601000 | G7: 425192907245 | H7: 5414522693755 | I7: 207892934631 | J7: 2589764655458 | K7: 0.4782997139 | L7: 155550249332 | M7: 462084066379 | N7: 0.08534160673
A8: 330000000000000 | B8: GASTOS | C8: 5162593543000 | F8: 5162593543000 | G8: 425192907245 | H8: 4737400635755 | I8: 207892934631 | J8: 2589764655458 | K8: 0.5466636357 | L8: 155550249332 | M8: 462084066379 | N8: 0.09753957959
A9: 331000000000000 | B9: GASTOS DE FUNCIONAMIENTO | C9: 1523729930000 | F9: 1523729930000 | G9: 23140379822 | H9: 1500589550178 | I9: 78361057858 | J9: 418110713781 | K9: 0.2786309646 | L9: 80606546886 | M9: 240109472050 | N9: 0.160010092
A10: 331010000000000 | B10: SERVICIOS PERSONALES | C10: 387255360000 | E10: 1182347555 | F10: 388437707555 | G10: 9196456116 | H10: 379241251439 | I10: 23128881049 | J10: 80979257989 | K10: 0.2135296666 | L10: 20479123422 | M10: 70002824511 | N10: 0.1845865244
A11: 331010100000000 | B11: SERVICIOS PERSONALES ASOCIADOS A LA NOMINA | C11: 254218541000 | E11: -102000000 | F11: 254116541000 | G11: 3315253800 | H11: 250801287200 | I11: 14717553929 | J11: 48459778812 | K11: 0.193219817 | L11: 14722000223 | M11: 48459778812 | N11: 0.193219817
A12: 331010101000000 | B12: SUELDOS PERSONAL DE NOMINA | C12: 141860559000 | F12: 141860559000 | H12: 141860559000 | I12: 10789421038 | J12: 31724330482 | K12: 0.2236303783 | L12: 10789421038 | M12: 31724330482 | N12: 0.2236303783
A13: 331010102000000 | B13: GASTOS DE REPRESENTACION | C13: 73834000 | F13: 73834000 | H13: 73834000 | I13: 7294757 | J13: 7308721 | K13: 0.09898855541 | L13: 7294757 | M13: 7308721 | N13: 0.09898855541
A14: 331010103000000 | B14: HORAS EXTRAS, DOMINICALES, FESTIVOS, RECARGO NOCTURNO | C14: 17666301000 | F14: 17666301000 | G14: 3315253800 | H14: 14351047200 | I14: 1328211510 | J14: 4953870587 | K14: 0.3451922719 | L14: 1328211510 | M14: 4953870587 | N14: 0.3451922719
A15: 331010104000000 | B15: SUBSIDIO DE TRANSPORTE | C15: 2030387000 | F15: 2030387000 | H15: 2030387000 | I15: 102592784 | J15: 351982414 | K15: 0.1733573028 | L15: 102592784 | M15: 351982414 | N15: 0.1733573028
A16: 331010105000000 | B16: SUBSIDIO DE ALIMENTACION | C16: 9684978000 | F16: 9684978000 | H16: 9684978000 | I16: 757710524 | J16: 2577199944 | K16: 0.2661028186 | L16: 757710524 | M16: 2577199944 | N16: 0.2661028186
A17: 331010106000000 | B17: BONIFICACION POR SERVICIOS PRESTADOS | C17: 435123000 | F17: 435123000 | H17: 435123000 | I17: 24440960 | J17: 76256565 | K17: 0.175252894 | L17: 24440960 | M17: 76256565 | N17: 0.175252894
A18: 331010107000000 | B18: PRIMA SEMESTRAL | C18: 16283229000 | F18: 16283229000 | H18: 16283229000 | I18: 55908768 | J18: 77580537 | K18: 0.004764444263 | L18: 55908768 | M18: 77580537 | N18: 0.004764444263
A19: 331010109000000 | B19: PRIMA DE NAVIDAD | C19: 17204839000 | F19: 17204839000 | H19: 17204839000 | I19: 36516944 | J19: 43889463 | K19: 0.002550995275 | L19: 36516944 | M19: 43889463 | N19: 0.002550995275
A20: 331010110000000 | B20: PRIMA DE VACACIONES | C20: 18158924000 | F20: 18158924000 | H20: 18158924000 | I20: 808542133 | J20: 3187356586 | K20: 0.1755256306 | L20: 808542133 | M20: 3187356586 | N20: 0.1755256306
A21: 331010111000000 | B21: PRIMA TECNICA | C21: 4536541000 | F21: 4536541000 | H21: 4536541000 | I21: 320966311 | J21: 1003566826 | K21: 0.2212185068 | L21: 320966311 | M21: 1003566826 | N21: 0.2212185068
A22: 331010112000000 | B22: OTRAS PRIMAS Y BONIFICACIONES | C22: 10001947000 | E22: -102000000 | F22: 9899947000 | H22: 9899947000 | I22: 186980875 | J22: 2814574203 | K22: 0.2843019466 | L22: 191427169 | M22: 2814574203 | N22: 0.2843019466
A23: 331010114000000 | B23: QUINQUENIO | C23: 15353891000 | F23: 15353891000 | H23: 15353891000 | I23: 245940480 | J23: 1291003707 | K23: 0.08408316218 | L23: 245940480 | M23: 1291003707 | N23: 0.08408316218
A24: 331010115000000 | B24: INDEMNIZACIONES LABORALES | C24: 250000000 | F24: 250000000 | H24: 250000000 | I24: 53026845 | J24: 53026845 | K24: 0.21210738 | L24: 53026845 | M24: 53026845 | N24: 0.21210738
A25: 331010116000000 | B25: CONVENCIONES COLECTIVAS O CONVENIOS | C25: 677988000 | F25: 677988000 | H25: 677988000 | J25: 297831932 | K25: 0.4392879107 | M25: 297831932 | N25: 0.4392879107
A26: 331010200000000 | B26: SERVICIOS PERSONALES INDIRECTOS | C26: 55095034000 | E26: 52347555 | F26: 55147381555 | G26: 5881202316 | H26: 49266179239 | I26: 3877598698 | J26: 8577997690 | K26: 0.1741153429 | L26: 1229755260 | M26: 1852903358 | N26: 0.03761004784
A27: 331010203000000 | B27: HONORARIOS EMPRESA | C27: 48860877000 | E27: 2347555 | F27: 48863224555 | G27: 5494202304 | H27: 43369022251 | I27: 3516958706 | J27: 7590542929 | K27: 0.1750222287 | L27: 882693802 | M27: 949379932 | N27: 0.02189073866
A28: 331010204000000 | B28: REMUNERACION SERVICIOS TECNICOS | C28: 2244995000 | E28: 50000000 | F28: 2294995000 | G28: 387000012 | H28: 1907994988 | I28: 42846000 | J28: 115854201 | K28: 0.06072039063 | L28: 29267466 | M28: 31922866 | N28: 0.01673110579
A29: 331010299000000 | B29: OTROS GASTOS DE PERSONAL | C29: 3989162000 | F29: 3989162000 | H29: 3989162000 | I29: 317793992 | J29: 871600560 | K29: 0.2184921445 | L29: 317793992 | M29: 871600560 | N29: 0.2184921445
A30: 331010300000000 | B30: APORTES PATRONALES AL SECTOR PRIVADO Y PUBLICO | C30: 77941785000 | E30: 1232000000 | F30: 79173785000 | H30: 79173785000 | I30: 4533728422 | J30: 23941481487 | K30: 0.3023915237 | L30: 4527367939 | M30: 19690142341 | N30: 0.2486952258
A31: 331010301000000 | B31: APORTES PATRONALES AL SECTOR PRIVADO | C31: 54959717000 | E31: 680000000 | F31: 55639717000 | H31: 55639717000 | I31: 3127673980 | J31: 16167977269 | K31: 0.2905833843 | L31: 3129047453 | M31: 13208786541 | N31: 0.2373985213
A32: 331010301010000 | B32: CESANTIAS FONDOS PRIVADOS | C32: 5752702000 | E32: 680000000 | F32: 6432702000 | H32: 6432702000 | J32: 6416334057 | K32: 0.9974555105 | M32: 6416334057 | N32: 0.9974555105
A33: 331010301020000 | B33: PENSIONES FONDOS PRIVADOS | C33: 9728294000 | F33: 9728294000 | H33: 9728294000 | I33: 653879943 | J33: 1924973149 | K33: 0.197873661 | L33: 663247914 | M33: 1284030807 | N33: 0.1319893094
A34: 331010301030000 | B34: SALUD EPS PRIVADAS | C34: 30202482000 | F34: 30202482000 | H34: 30202482000 | I34: 1894245037 | J34: 5819673563 | K34: 0.1926885864 | L34: 1892160839 | M34: 4054141877 | N34: 0.1342320766
A35: 331010301050000 | B35: CAJA DE COMPENSACION | C35: 9276239000 | F35: 9276239000 | H35: 9276239000 | I35: 579549000 | J35: 2006996500 | K35: 0.2163588605 | L35: 573638700 | M35: 1454279800 | N35: 0.156774723
A36: 331010302000000 | B36: APORTES PATRONALES AL SECTOR PUBLICO | C36: 22982068000 | E36: 552000000 | F36: 23534068000 | H36: 23534068000 | I36: 1406054442 | J36: 7773504218 | K36: 0.3303085645 | L36: 1398320486 | M36: 6481355800 | N36: 0.275403122
A37: 331010302010000 | B37: CESANTIAS FONDOS PÚBLICOS | C37: 2527769000 | E37: 450000000 | F37: 2977769000 | H37: 2977769000 | I37: 42096 | J37: 2941222386 | K37: 0.9877268472 | M37: 2941180290 | N37: 0.9877127104
A38: 331010302020000 | B38: PENSIONES FONDOS PÚBLICOS | C38: 11903800000 | F38: 11903800000 | H38: 11903800000 | I38: 1048336490 | J38: 3364406037 | K38: 0.2826329438 | L38: 1046353641 | M38: 2441534100 | N38: 0.2051054369
A39: 331010302030000 | B39: SALUD EPS PUBLICOS | C39: 55479000 | E39: 102000000 | F39: 157479000 | H39: 157479000 | I39: 22819456 | J39: 82939194 | K39: 0.5266682796 | L39: 22619745 | M39: 46322309 | N39: 0.2941491183
A40: 331010302040000 | B40: RIESGOS PROFESIONALES SECTOR PUBLICO | C40: 2895755000 | F40: 2895755000 | H40: 2895755000 | I40: 208423200 | J40: 632870401 | K40: 0.2185510863 | L40: 204312900 | M40: 423551701 | N40: 0.1462664145
A41: 331010302050000 | B41: ICBF | C41: 3382106000 | F41: 3382106000 | H41: 3382106000 | I41: 75858300 | J41: 451224800 | K41: 0.1334153335 | L41: 75018800 | M41: 377246700 | N41: 0.1115419505
A42: 331010302060000 | B42: SENA | C42: 2217159000 | F42: 2217159000 | H42: 2217159000 | I42: 50574900 | J42: 300841400 | K42: 0.1356877878 | L42: 50015400 | M42: 251520700 | N42: 0.1134427887
A43: 331020000000000 | B43: GASTOS GENERALES | C43: 535521585000 | D43: 450000000 | E43: -8305550245 | F43: 527216034755 | G43: 13943923706 | H43: 513272111049 | I43: 40693646351 | J43: 98600930340 | K43: 0.1921026454 | L43: 14204312768 | M43: 49473726835 | N43: 0.09638888568
A44: 331020100000000 | B44: ADQUISICION DE BIENES | C44: 52613709000 | D44: 64104027 | E44: 236124027 | F44: 52849833027 | G44: 1528340504 | H44: 51321492523 | I44: 9052278531 | J44: 12159868595 | K44: 0.2369352097
A45: 331020101000000 | B45: DOTACION | C45: 6302138000 | D45: 666872 | E45: 4888632 | F45: 6307026632 | H45: 6307026632
A46: 331020102000000 | B46: MATERIALES Y SUMINISTROS | C46: 19815490000 | D46: 62457305 | E46: 229418874 | F46: 20044908874 | G46: 960214053 | H46: 19084694821 | I46: 690855652 | J46: 690855652 | K46: 0.03619946027
A47: 331020103000000 | B47: GASTOS DE COMPUTADOR | C47: 22303043000 | F47: 22303043000 | G47: 568126451 | H47: 21734916549 | I47: 8360929579 | J47: 11468519643 | K47: 0.5276541834
A48: 331020104000000 | B48: COMBUSTIBLES, LUBRICANTES Y LLANTAS | C48: 4193038000 | D48: 979850 | E48: 1816521 | F48: 4194854521 | H48: 4194854521 | I48: 493300 | J48: 493300 | K48: 0.00011759645
A49: 331020200000000 | B49: ADQUISICION DE SERVICIOS | C49: 132207317000 | D49: 387245673 | E49: 414675673 | F49: 132621992673 | G49: 9394583202 | H49: 123227409471 | I49: 16656556130 | J49: 27909540592 | K49: 0.2264880899 | L49: 1297834290 | M49: 2066716920 | N49: 0.01677156835
A50: 331020201000000 | B50: VIATICOS Y GASTOS DE VIAJE | C50: 1146346000 | F50: 1146346000 | G50: 229269200 | H50: 917076800 | I50: 125781760 | J50: 199552811 | K50: 0.217596619 | L50: 37647092 | M50: 109552811 | N50: 0.1194587095
A51: 331020202000000 | B51: GASTOS DE TRANSPORTE Y COMUNICACIÓN | C51: 14825487000 | D51: 76349700 | E51: 101349700 | F51: 14926836700 | G51: 50000000 | H51: 14876836700 | I51: 971012964 | J51: 1936914612 | K51: 0.1301966709 | L51: 736045364 | M51: 1013802442 | N51: 0.0681463716
A52: 331020203000000 | B52: IMPRESOS Y PUBLICACIONES | C52: 352208000 | E52: 2430000 | F52: 354638000 | G52: 6500000 | H52: 348138000 | I52: 5005388 | J52: 13200645 | K52: 0.03791785154 | L52: 5005388 | M52: 13200645 | N52: 0.03791785154
A53: 331020204000000 | B53: MANTENIMIENTO Y REPARACIONES | C53: 65110277000 | D53: -139104027 | E53: -139104027 | F53: 64971172973 | G53: 5270159853 | H53: 59701013120 | I53: 14098415185 | J53: 17507698192 | K53: 0.2932562996 | L53: 11255671 | M53: 66399360 | N53: 0.001112198211
A54: 331020205000000 | B54: ARRENDAMIENTOS | C54: 11008291000 | F54: 11008291000 | G54: 285066000 | H54: 10723225000 | I54: 976560564 | J54: 3486419193 | K54: 0.3251278597 | L54: 20831534 | M54: 20831534 | N54: 0.001942655684
A55: 331020206000000 | B55: SEGUROS | C55: 17325844000 | F55: 17325844000 | H55: 17325844000 | I55: 52341894 | J55: 52341894 | K55: 0.003021029971
A56: 331020207000000 | B56: SUMINISTRO DE ALIMENTOS | C56: 3850289000 | D56: 450000000 | E56: 450000000 | F56: 4300289000 | G56: 500000004 | H56: 3800288996
A57: 331020208000000 | B57: SERVICIOS PUBLICOS | C57: 5316766000 | F57: 5316766000 | H57: 5316766000 | I57: 204831975 | J57: 4042204442 | K57: 0.7602750322 | L57: 462051345 | M57: 739015232 | N57: 0.1389971332
A58: 331020209000000 | B58: CAPACITACION | C58: 700001000 | F58: 700001000 | G58: 140000000 | H58: 560001000 | I58: 8475000 | J58: 25874736 | K58: 0.04620480321 | L58: 5860000 | M58: 8770000 | N58: 0.01566068632
A59: 331020210000000 | B59: BIENESTAR E INCENTIVOS | C59: 5047781000 | F59: 5047781000 | G59: 851500000 | H59: 4196281000
A60: 331020211000000 | B60: PROMOCION INSTITUCIONAL | C60: 4797415000 | F60: 4797415000 | G60: 2062088145 | H60: 2735326855 | I60: 83477625 | J60: 93311458 | K60: 0.03411345808 | L60: 4420267 | M60: 4420267 | N60: 0.00161599225
A61: 331020212000000 | B61: INTERESES Y COMISIONES | C61: 702600000 | F61: 702600000 | H61: 702600000 | J61: 329363000 | K61: 0.4687773982 | L61: 963914 | M61: 2843914 | N61: 0.004047699972
A62: 331020213000000 | B62: SALUD OCUPACIONAL | C62: 1864012000 | F62: 1864012000 | H62: 1864012000 | I62: 130653775 | J62: 148532609 | K62: 0.07968436308 | L62: 13753715 | M62: 13753715 | N62: 0.007378554966
A63: 331020214000000 | B63: PROGRAMAS Y CONVENIOS INSTITUCIONES | C63: 160000000 | F63: 160000000 | H63: 160000000 | J63: 74127000 | K63: 0.46329375 | M63: 74127000 | N63: 0.46329375
A64: 331020300000000 | B64: OTROS GASTOS GENERALES | C64: 350700559000 | D64: -1349700 | E64: -8956349945 | F64: 341744209055 | G64: 3021000000 | H64: 338723209055 | I64: 14984811690 | J64: 58531521153 | K64: 0.1728004447 | L64: 12906478478 | M64: 47407009915 | N64: 0.1399579617
A65: 331020301000000 | B65: IMPUESTOS, TASAS Y MULTAS | C65: 328691060000 | E65: -9144202689 | F65: 319546857311 | H65: 319546857311 | I65: 14378546903 | J65: 57713869774 | K65: 0.1806116019 | L65: 12709916654 | M65: 47174108332 | N65: 0.1476281405
A66: 331020302000000 | B66: SENTENCIAS JUDICIALES | C66: 750000000 | F66: 750000000 | H66: 750000000
A67: 331020399000000 | B67: OTROS GASTOS GENERALES | C67: 21259499000 | D67: -1349700 | E67: 187852744 | F67: 21447351744 | G67: 3021000000 | H67: 18426351744 | I67: 606264787 | J67: 817651379 | K67: 0.04437402424 | L67: 196561824 | M67: 232901583 | N67: 0.01263959281
A68: 331030000000000 | B68: TRANSFERENCIAS CORRIENTES | C68: 423259304000 | E68: -1130000000 | F68: 422129304000 | H68: 422129304000 | I68: 14621845482 | J68: 52795208640 | K68: 0.1250688074 | L68: 21628311682 | M68: 52620648840 | N68: 0.1246552853
A69: 331030100000000 | B69: TRANSFERENCIAS AL SECTOR PUBLICO | C69: 141264690000 | F69: 141264690000 | H69: 141264690000
A70: 331030100000000 | B70: TRANSFERENCIAS AL SECTOR PUBLICO | C70: 141264690000 | F70: 141264690000 | H70: 141264690000
A71: 331030300000000 | B71: TRANSFERENCIAS DE PREVISION Y SEGURIDAD SOCIAL | C71: 281294614000 | E71: -1130000000 | F71: 280164614000 | H71: 280164614000 | I71: 14583743582 | J71: 52691274361 | K71: 0.1880725535 | L71: 21590209782 | M71: 52516714561 | N71: 0.187449492
A72: 331030301000000 | B72: PENSIONES Y JUBILACIONES | C72: 194666163000 | E72: -1130000000 | F72: 193536163000 | H72: 193536163000 | I72: 13687590909 | J72: 41813584083 | K72: 0.2160504964 | L72: 13687590909 | M72: 41717584083 | N72: 0.215554465
A73: 331030302000000 | B73: CESANTIAS | C73: 19026289000 | F73: 19026289000 | H73: 19026289000 | I73: 817592873 | J73: 3544272478 | K73: 0.1862829098 | L73: 817592873 | M73: 3544272478 | N73: 0.1862829098
A74: 331030303000000 | B74: OTRAS TRANSFERENCIAS DE PREVISION SOCIAL | C74: 67602162000 | F74: 67602162000 | H74: 67602162000 | I74: 78559800 | J74: 7333417800 | K74: 0.1084790424 | L74: 7085026000 | M74: 7254858000 | N74: 0.1073169524
A75: 331030303010000 | B75: FONDO DE VIVIENDA | C75: 21832635000 | F75: 21832635000 | H75: 21832635000 | J75: 7000000000 | K75: 0.320620942 | L75: 7000000000 | M75: 7000000000 | N75: 0.320620942
A76: 331030303020000 | B76: PAGOS SERVICIOS MEDICOS CONVENCIONALES | C76: 45769527000 | F76: 45769527000 | H76: 45769527000 | I76: 78559800 | J76: 333417800 | K76: 0.007284711507 | L76: 85026000 | M76: 254858000 | N76: 0.005568290011
A77: 331030400000000 | B77: OTRAS TRANSFERENCIAS | C77: 700000000 | F77: 700000000 | H77: 700000000 | I77: 38101900 | J77: 103934279 | K77: 0.1484775414 | L77: 38101900 | M77: 103934279 | N77: 0.1484775414
A78: 331030401000000 | B78: DESTINATARIOS DE OTRAS TRANSFERENCIAS | C78: 700000000 | F78: 700000000 | H78: 700000000 | I78: 38101900 | J78: 103934279 | K78: 0.1484775414 | L78: 38101900 | M78: 103934279 | N78: 0.1484775414
A79: 331040000000000 | B79: CUENTAS POR PAGAR | C79: 177693681000 | D79: -450000000 | E79: 8253202690 | F79: 185946883690 | H79: 185946883690 | I79: -83315024 | J79: 185735316812 | K79: 0.9988622187 | L79: 24294799014 | M79: 68012271864 | N79: 0.3657618268
A80: 332000000000000 | B80: GASTOS DE OPERACION | C80: 257596808000 | F80: 257596808000 | G80: 9000000000 | H80: 248596808000 | I80: 8592780941 | J80: 158971969666 | K80: 0.6394771154 | L80: 17585138052 | M80: 40049149037 | N80: 0.1611008177
A81: 332010000000000 | B81: GASTOS DE COMERCIALIZACION | C81: 97177505000 | E81: -28156618935 | F81: 69020886065 | G81: 9000000000 | H81: 60020886065 | I81: 8663976340 | J81: 11329090886 | K81: 0.1887524765 | L81: 1304244 | M81: 1765970 | N81: 2.94225913e-05
A82: 332010100000000 | B82: COMPRA DE BIENES PARA LA VENTA | C82: 3037881000 | F82: 3037881000 | H82: 3037881000
A83: 332010101000000 | B83: MEDIDORES | C83: 3037881000 | F83: 3037881000 | H83: 3037881000
A84: 332010200000000 | B84: COMPRA DE SERVICIOS PARA LA VENTA | C84: 10866852000 | F84: 10866852000 | H84: 10866852000 | I84: 5499642665 | J84: 5499642665 | K84: 0.5060934542
A85: 332010201000000 | B85: GESTION COMERCIAL | C85: 10866852000 | F85: 10866852000 | H85: 10866852000 | I85: 5499642665 | J85: 5499642665 | K85: 0.5060934542
A86: 332010500000000 | B86: OTROS GASTOS DE COMERCIALIZACION | C86: 83272772000 | E86: -28156618935 | F86: 55116153065 | G86: 9000000000 | H86: 46116153065 | I86: 3164333675 | J86: 5829448221 | K86: 0.1264079468 | L86: 1304244 | M86: 1765970 | N86: 3.829395738e-05
A87: 332010501000000 | B87: MANTENIMIENTO Y MATERIALES OPERACION INFRAESTRUCTURA | C87: 78122772000 | E87: -28156618935 | F87: 49966153065 | G87: 9000000000 | H87: 40966153065 | I87: 3164333675 | J87: 5829448221 | K87: 0.1422991368 | L87: 1304244 | M87: 1765970 | N87: 4.310802621e-05
A88: 332010502000000 | B88: COMERCIALIZACION DE ENERGIA | C88: 150000000 | F88: 150000000 | H88: 150000000
A89: 332010503000000 | B89: FONDO ATENCION EMERGENCIAS | C89: 4000000000 | F89: 4000000000 | H89: 4000000000
A90: 332010504000000 | B90: FONDO OBLIGACIONES CONTIGENTES | C90: 1000000000 | F90: 1000000000 | H90: 1000000000
A91: 332020000000000 | B91: GASTOS DE PRODUCCION | C91: 90897005000 | F91: 90897005000 | H91: 90897005000 | J91: 51221635706 | K91: 0.563512909 | L91: 5346719496 | M91: 10419562320 | N91: 0.1146304251
A92: 332020100000000 | B92: INDUSTRIAL | C92: 90897005000 | F92: 90897005000 | H92: 90897005000 | J92: 51221635706 | K92: 0.563512909 | L92: 5346719496 | M92: 10419562320 | N92: 0.1146304251
A93: 332020102000000 | B93: ENERGIA PARA BOMBEO | C93: 49926839000 | F93: 49926839000 | H93: 49926839000 | J93: 49115736921 | K93: 0.9837541872 | L93: 5346719496 | M93: 9255117755 | N93: 0.1853735975
A94: 332020103000000 | B94: TASA POR USO DE AGUA | C94: 11918982000 | F94: 11918982000 | H94: 11918982000 | J94: 1164444565 | K94: 0.09769664599 | M94: 1164444565 | N94: 0.09769664599
A95: 332020109000000 | B95: PRODUCTOS QUIMICOS | C95: 29051184000 | F95: 29051184000 | H95: 29051184000 | J95: 941454220 | K95: 0.03240674184
A96: 332030000000000 | B96: CUENTAS POR PAGAR | C96: 69522298000 | E96: 28156618935 | F96: 97678916935 | H96: 97678916935 | I96: -71195399 | J96: 96421243074 | K96: 0.9871244082 | L96: 12237114312 | M96: 29627820747 | N96: 0.3033184814
A97: 333000000000000 | B97: SERVICIO DE LA DEUDA | C97: 100538280000 | F97: 100538280000 | H97: 100538280000 | J97: 81314989153 | K97: 0.8087963028 | M97: 74144095295 | N97: 0.7374712925
A98: 333010000000000 | B98: DEUDA INTERNA | C98: 90538280000 | F98: 90538280000 | H98: 90538280000 | J98: 81106799040 | K98: 0.8958288035 | M98: 73935905182 | N98: 0.8166259088
A99: 333010100000000 | B99: AMORTIZACION | C99: 74444445000 | F99: 74444445000 | H99: 74444445000 | J99: 74444445000 | K99: 1 | M99: 70000000000 | N99: 0.9402985004
A100: 333010200000000 | B100: INTERESES | C100: 16073885000 | F100: 16073885000 | H100: 16073885000 | J100: 6643354500 | K100: 0.4133011092 | M100: 3935905182 | N100: 0.2448633409
A101: 333010300000000 | B101: COMISIONES Y OTROS | C101: 19950000 | F101: 19950000 | H101: 19950000 | J101: 18999540 | K101: 0.9523578947
A102: 333030000000000 | B102: BONOS PENSIONALES | C102: 10000000000 | F102: 10000000000 | H102: 10000000000 | J102: 208190113 | K102: 0.0208190113 | M102: 208190113 | N102: 0.0208190113
A103: 334000000000000 | B103: INVERSION | C103: 3280728525000 | F103: 3280728525000 | G103: 393052527423 | H103: 2887675997577 | I103: 120939095832 | J103: 1931366982858 | K103: 0.6688309161 | L103: 57358564394 | M103: 107781349997 | N103: 0.03732459947
A104: 334010000000000 | B104: DIRECTA | C104: 1740814677000 | D104: 3716497183 | E104: 20217500005 | F104: 1761032177005 | G104: 358619683171 | H104: 1402412493834 | I104: 120896656474 | J104: 786022150593 | K104: 0.5604785711 | L104: 6629106563 | M104: 16332077047 | N104: 0.01164570133
A105: 334011500000000 | B105: BOGOTA MEJOR PARA TODOS | C105: 1740814677000 | D105: 3716497183 | E105: 20217500005 | F105: 1761032177005 | G105: 358619683171 | H105: 1402412493834 | I105: 120896656474 | J105: 786022150593 | K105: 0.5604785711 | L105: 6629106563 | M105: 16332077047 | N105: 0.01164570133
A106: 334011502000000 | B106: PILAR DEMOCRACIA URBANA | C106: 1527980398000 | D106: 391066884 | E106: -797931489 | F106: 1527182466511 | G106: 327242417971 | H106: 1199940048540 | I106: 85550103781 | J106: 740437932306 | K106: 0.6170624384 | L106: 6603656788 | M106: 7249287074 | N106: 0.006041374386
A107: 334011502130000 | B107: INFRAESTRUCTURA PARA EL DESARROLLO DEL HABITAT | C107: 1527980398000 | D107: 391066884 | E107: -797931489 | F107: 1527182466511 | G107: 327242417971 | H107: 1199940048540 | I107: 85550103781 | J107: 740437932306 | K107: 0.6170624384 | L107: 6603656788 | M107: 7249287074 | N107: 0.006041374386
A108: 334011502130133 | B108: INFRAESTRUCTURA PARA EL DESARROLLO DEL HABITAT | C108: 1527980398000 | D108: 391066884 | E108: -797931489 | F108: 1527182466511 | G108: 327242417971 | H108: 1199940048540 | I108: 85550103781 | J108: 740437932306 | K108: 0.6170624384 | L108: 6603656788 | M108: 7249287074 | N108: 0.006041374386
A109: 334011502130133000019 | B109: 0019 - CONSTRUCCIÓN DE REDES LOCALES PARA EL SERVICIO DE ALC | C109: 29559352000 | D109: 175958765 | E109: 1462716677 | F109: 31022068677 | G109: 2970000000 | H109: 28052068677 | I109: 8377486187 | J109: 15409118454 | K109: 0.5493041754 | L109: 390501867 | M109: 390501867 | N109: 0.01392060855
A110: 334011502130133000020 | B110: 0020 - CONSTRUCCIÓN DE REDES LOCALES PARA EL SERVICIO DE ALC | C110: 30878351000 | D110: -211430181 | E110: -127511594 | F110: 30750839406 | H110: 30750839406 | I110: 11458004946 | J110: 14371957142 | K110: 0.467367962 | L110: 316327102 | M110: 316327102 | N110: 0.01028677942
A111: 334011502130133000021 | B111: 0021 - CONSTRUCCIÓN DEL SISTEMA TRONCAL Y SECUNDARIO DE ALCA | C111: 9912330000 | E111: -2456981917 | F111: 7455348083 | H111: 7455348083
A112: 334011502130133000050 | B112: 0050 - RENOVACIÓN, REHABILITACIÓN O REPOSICIÓN DE LOS SISTEM | C112: 384197759000 | D112: -648959643 | E112: -22474266719 | F112: 361723492281 | G112: 5000000000 | H112: 356723492281 | I112: 3905188621 | J112: 239701850686 | K112: 0.6719542051 | L112: 535540169 | M112: 535540169 | N112: 0.001501275303
A113: 334011502130133000051 | B113: 0051 - RENOVACIÓN, REHABILITACIÓN O REPOSICIÓN DEL SISTEMA T | C113: 191033782000 | D113: 502574414 | E113: 2643650033 | F113: 193677432033 | G113: 26335569203 | H113: 167341862830 | I113: 15735906029 | J113: 69468891623 | K113: 0.4151315782 | L113: 3535339880 | M113: 3910396620 | N113: 0.02336771298
A114: 334011502130133000052 | B114: 0052 - RENOVACIÓN, REHABILITACIÓN O REPOSICIÓN DEL SISTEMA T | C114: 94953962000 | D114: 147297857 | E114: 2481195365 | F114: 97435157365 | G114: 8752149987 | H114: 88683007378 | I114: 28288609785 | J114: 38891275311 | K114: 0.4385425851 | L114: 1098859288 | M114: 1323593595 | N114: 0.01492499673
A115: 334011502130133000053 | B115: 0053 - RENOVACIÓN, REHABILITACIÓN O REPOSICIÓN DEL SISTEMA T | C115: 27457018000 | E115: 1660253766 | F115: 29117271766 | H115: 29117271766 | J115: 1979233837 | K115: 0.06797456344 | L115: 599741309 | M115: 642659756 | N115: 0.02207142761
A116: 334011502130133000054 | B116: 0054 - ACCIONES PARA EL SANEAMIENTO DEL RÍO BOGOTÁ | C116: 199958252000 | F116: 199958252000 | H116: 199958252000 | J116: 191112986235 | K116: 0.9557644374
A117: 334011502130133000068 | B117: 0068 - CONSTRUCCIÓN, RENOVACIÓN, REHABILITACIÓN O REPOSICIÓN | C117: 133991235000 | E117: 12880368944 | F117: 146871603944 | G117: 43249000000 | H117: 103622603944 | I117: 148446000 | J117: 37716258930 | K117: 0.3639771391
A118: 334011502130133000081 | B118: 0081 - CORREDORES AMBIENTALES | C118: 335819610000 | D118: 131943215 | E118: 920693410 | F118: 336740303410 | G118: 240935698781 | H118: 95804604629 | I118: 679980000 | J118: 95324157414 | K118: 0.9949851344 | M118: 2920792 | N118: 3.048696888e-05
A119: 334011502130133007334 | B119: 7334 - CONSTRUCCIÓN Y EXPANSIÓN DEL SISTEMA DE ABASTECIMIENT | C119: 76238903000 | D119: 637235542 | E119: 2497853727 | F119: 78736756727 | H119: 78736756727 | I119: 12611053730 | J119: 30164824903 | K119: 0.3831098226
A120: 334011502130133007338 | B120: 7338 - CONSTRUCCIÓN DE REDES LOCALES PARA EL SERVICIO DE ACU | C120: 13979844000 | D120: -343553085 | E120: -285903181 | F120: 13693940819 | H120: 13693940819 | I120: 4345428483 | J120: 6297377771 | K120: 0.4598659987 | L120: 127347173 | M120: 127347173 | N120: 0.009299527045
A121: 334011506000000 | B121: EJE TRANSV. SOSTENIB. AMBIENTAL BASADA EFICIENCIA ENERGETICA | C121: 65123144000 | D121: 3325430299 | E121: 21015431494 | F121: 86138575494 | H121: 86138575494 | I121: 35346552693 | J121: 45584218287 | K121: 0.5291963331 | L121: 25449775 | M121: 9082789973 | N121: 0.1054439306
A122: 334011506380000 | B122: RECUPERACION Y MANEJO ESTRUCTURA ECOLOGICA PRINCIPAL | C122: 11219688000 | D122: 3325430299 | E122: 18576459171 | F122: 29796147171 | H122: 29796147171 | J122: 9086120286 | K122: 0.3049427912 | M122: 9057340198 | N122: 0.3039768916
A123: 334011506380177 | B123: CONSOLIDACION DE LA ESTRUCTURA ECOLOGICA PRINCIPAL | C123: 11219688000 | D123: 3325430299 | E123: 18576459171 | F123: 29796147171 | H123: 29796147171 | J123: 9086120286 | K123: 0.3049427912 | M123: 9057340198 | N123: 0.3039768916
A124: 334011506380177007341 | B124: 7341 - ADEC.HIDRAULICA RECUP.AMB.HUMED,QUEBRADAS,RIOS CUENCA | C124: 11219688000 | D124: 3325430299 | E124: 18576459171 | F124: 29796147171 | H124: 29796147171 | J124: 9086120286 | K124: 0.3049427912 | M124: 9057340198 | N124: 0.3039768916
A125: 334011506390000 | B125: AMBIENTE SANO PARA LA EQUIDAD Y DISFRUTE DEL CIUDADANO | C125: 53903456000 | E125: 2438972323 | F125: 56342428323 | H125: 56342428323 | I125: 35346552693 | J125: 36498098001 | K125: 0.6477906453 | L125: 25449775 | M125: 25449775 | N125: 0.0004516982274
A126: 334011506390179 | B126: AMBIENTE SANO | C126: 53903456000 | E126: 2438972323 | F126: 56342428323 | H126: 56342428323 | I126: 35346552693 | J126: 36498098001 | K126: 0.6477906453 | L126: 25449775 | M126: 25449775 | N126: 0.0004516982274
A127: 334011506390179000082 | B127: 0082 - PLAN DE SANEAMIENTO Y MANEJO DE VERTIMIENTOS | C127: 53903456000 | E127: 2438972323 | F127: 56342428323 | H127: 56342428323 | I127: 35346552693 | J127: 36498098001 | K127: 0.6477906453 | L127: 25449775 | M127: 25449775 | N127: 0.0004516982274
A128: 334011507000000 | B128: EJE TRANSVERSAL GOBIERNO LEGITIMO, FORT. LOCAL Y EFICIENTE | C128: 147711135000 | F128: 147711135000 | G128: 31377265200 | H128: 116333869800
A129: 334011507420000 | B129: TRANSPARENCIA, GESTION PUBLICA Y SERVICIO A LA CIUDADANIA | C129: 147711135000 | F129: 147711135000 | G129: 31377265200 | H129: 116333869800
A130: 334011507420185 | B130: FORTALECIMIENTO A LA GESTION PUBLICA EFECTIVA Y EFICIENTE | C130: 147711135000 | F130: 147711135000 | G130: 31377265200 | H130: 116333869800
A131: 334011507420185000055 | B131: 0055 - FORTALECIMIENTO ADMINISTRATIVO Y OPERATIVO EMPRESARIA | C131: 147711135000 | F131: 147711135000 | G131: 31377265200 | H131: 116333869800
A132: 334020000000000 | B132: TRANSFERENCIAS PARA INVERSION | C132: 295508851000 | D132: -3570611676 | E132: -20169063954 | F132: 275339787046 | G132: 34432844252 | H132: 240906942794 | J132: 5000000000 | K132: 0.02075490205 | M132: 5000000000 | N132: 0.02075490205
A133: 334020200000000 | B133: EMPRESAS DISTRITALES | C133: 295508851000 | D133: -3570611676 | E133: -20169063954 | F133: 275339787046 | G133: 34432844252 | H133: 240906942794 | J133: 5000000000 | K133: 0.02075490205 | M133: 5000000000 | N133: 0.02075490205
A134: 334030000000000 | B134: CUENTAS POR PAGAR | C134: 1244404997000 | D134: -145885507 | E134: -48436051 | F134: 1244356560949 | H134: 1244356560949 | I134: 42439358 | J134: 1140344832265 | K134: 0.9164132436 | L134: 50729457831 | M134: 86449272950 | N134: 0.069473072
A135: 340000000000000 | B135: DISPONIBILIDAD FINAL | C135: 677122058000 | F135: 677122058000 | H135: 677122058000
B140: JULIANA CASTRO BUITRAGO | F140: DIANA GISELA PARRA CORREA
B141: Directora Presupuesto | F141: Gerente Corporativo Financiero

Sheet Graph (hidden)
G1: FEP8Qry3
F2: Dir. SIE - BI Rev 2014.01
F5: Information
F6: Autor | G6: RAGARCIA | I6: Últ.actual.pantalla | J6: 02/07/2014 09:16:31
F7: Usuario actual | G7: AOCAMPOR | I7: Fe.clave | J7: 02/07/2014
F8: Modificado por | G8: RAGARCIA | I8: Hora de modificación | J8: 12/06/2014 15:20:31
F9: InfoSitio | G9: 0PU_C02 | I9: Actualidad de datos | J9: 02/07/2014 00:39:33
F10: Nombre técnico query | G10: ZPU_C02_Q4001 | I10: Actualidad de datos (fecha) | J10: 02/07/2014
F11: Descripción query | G11: EJECUCION PRESUPUESTAL DE GASTOS - SECRETARIA DE HACIENDA | I11: Actualidad de los datos (hora) | J11: 00:39:33
C14: Filter
C15: Cta Entidades PSM | D15: GASTOS, DISPONIBILIDAD FINAL
C16: Ratios

Sheet V_Futuras_2021-2022
A2: EMPRESA DE ACUEDUCTO ALCANTARILLADO DE BOGOTA | M2: EMPRESA DE ACUEDUCTO ALCANTARILLADO DE BOGOTA | Y2: EMPRESA DE ACUEDUCTO ALCANTARILLADO DE BOGOTA | AK2: EMPRESA DE ACUEDUCTO ALCANTARILLADO DE BOGOTA
A3: EJECUCION PRESUPUESTAL DE VIGENCIAS FUTURAS | M3: EJECUCION PRESUPUESTAL DE VIGENCIAS FUTURAS | Y3: EJECUCION PRESUPUESTAL DE VIGENCIAS FUTURAS | AK3: EJECUCION PRESUPUESTAL DE VIGENCIAS FUTURAS
A4: A 31 MARZO DE 2020 | M4: A 31 MARZO DE 2020 | Y4: A 31 ENERO DE 2020 | AK4: A 31 MARZO DE 2020
A6: 2021 | M6: 2022 | Q6: 2020 | Y6: 2023 | AK6: 2021-2022
A7: CODIGO SECRETARIA DE HACIENDA | B7: CONCEPTO | C7: PRESUPUESTO INICIAL | D7: MODIFICACIONES MES | E7: MODIFICACIONES ACUMULADAS | F7: PRESUPUESTO DEFINITIVO | G7: COMPROMISOS MES | H7: COMPROMISOS ACUMULADOS | I7: % EJEC PPTAL | J7: DISPONIBILIDADES MES | K7: DISPONIBILIDADES ACUMULADAS | L7: SALDO DISPONIBLE | M7: CODIGO SECRETARIA DE HACIENDA | N7: CONCEPTO | O7: PRESUPUESTO INICIAL | P7: MODIFICACIONES MES | Q7: MODIFICACIONES ACUMULADAS | R7: PRESUPUESTO DEFINITIVO | S7: COMPROMISOS MES | T7: COMPROMISOS ACUMULADOS | U7: % EJEC PPTAL | V7: DISPONIBILIDADES MES | W7: DISPONIBILIDADES ACUMULADAS | X7: SALDO DISPONIBLE | Y7: CODIGO SECRETARIA DE HACIENDA | Z7: CONCEPTO | AA7: PRESUPUESTO INICIAL | AB7: MODIFICACIONES MES | AC7: MODIFICACIONES ACUMULADAS | AD7: PRESUPUESTO DEFINITIVO | AE7: COMPROMISOS MES | AF7: COMPROMISOS ACUMULADOS | AG7: % EJEC PPTAL | AH7: DISPONIBILIDADES MES | AI7: DISPONIBILIDADES ACUMULADAS | AJ7: SALDO DISPONIBLE | AK7: CODIGO SECRETARIA DE HACIENDA | AL7: CONCEPTO | AM7: Presupuesto Inicial VF Total | AN7: Modificaciones mes VF Total | AO7: Modificaciones Acumuladas VF Total | AP7: Presupuesto Definitivo VF Total | AQ7: Compromisos mes Total | AR7: Compromisos Acumulados Total | AS7: % EJEC PPTAL | AT7: Disponibilidades mes Total | AU7: Disponibilidades Acumuladas Total | AV7: Saldo Disponible Total
A8: 3 | B8: TOTAL GASTOS | C8: =C9 -> 382346750258 | D8: 0 | E8: 0 | F8: 382346750258 | G8: 56343962097 | H8: 355692229186 | I8: =H8/F8 -> 0.9302870469 | J8: -56343962097 | K8: 26345084234 | L8: 309436838 | M8: 3 | N8: TOTAL GASTOS | O8: =O9 -> 39259233760 | P8: 0 | Q8: 0 | R8: 39259233760 | S8: 15631284424 | T8: 39259233760 | U8: =T8/R8 -> 1 | V8: -15631284424 | W8: 0 | X8: 0 | Y8: 3 | Z8: TOTAL GASTOS | AA8: =AA9 -> 0 | AB8: 0 | AC8: 0 | AD8: 0 | AE8: 0 | AF8: 0 | AG8: 0 | AH8: =AH9 -> 0 | AI8: 0 | AJ8: 0 | AK8: 3 | AL8: TOTAL GASTOS | AM8: =AM9 -> 421605984018 | AN8: 0 | AO8: 0 | AP8: 421605984018 | AQ8: 71975246521 | AR8: 394951462946 | AS8: =AR8/AP8 -> 0.9367785988 | AT8: -71975246521 | AU8: 26345084234 | AV8: 309436838
A9: 330000000000000 | B9: GASTOS | C9: =+C10 -> 382346750258 | D9: 0 | E9: 0 | F9: 382346750258 | G9: 56343962097 | H9: 355692229186 | I9: =H9/F9 -> 0.9302870469 | J9: =+J10 -> -56343962097 | K9: 26345084234 | L9: 309436838 | M9: 330000000000000 | N9: GASTOS | O9: =+O10 -> 39259233760 | P9: 0 | Q9: 0 | R9: 39259233760 | S9: 15631284424 | T9: 39259233760 | U9: =T9/R9 -> 1 | V9: =+V10 -> -15631284424 | W9: 0 | X9: 0 | Y9: 330000000000000 | Z9: GASTOS | AA9: =+AA10 -> 0 | AB9: 0 | AC9: 0 | AD9: 0 | AE9: 0 | AF9: 0 | AG9: 0 | AH9: =+AH10 -> 0 | AI9: =+AI10 -> 0 | AJ9: =+AJ10 -> 0 | AK9: 330000000000000 | AL9: GASTOS | AM9: =+AM10 -> 421605984018 | AN9: 0 | AO9: 0 | AP9: 421605984018 | AQ9: 71975246521 | AR9: 394951462946 | AS9: =AR9/AP9 -> 0.9367785988 | AT9: =+AT10 -> -71975246521 | AU9: 26345084234 | AV9: 309436838
A10: 334000000000000 | B10: INVERSION | C10: 382346750258 | D10: 0 | E10: 0 | F10: 382346750258 | G10: 56343962097 | H10: 355692229186 | I10: 0.9302870469 | J10: -56343962097 | K10: 26345084234 | L10: 309436838 | M10: 334000000000000 | N10: INVERSION | O10: 39259233760 | P10: 0 | Q10: 0 | R10: 39259233760 | S10: 15631284424 | T10: 39259233760 | U10: 1 | V10: -15631284424 | W10: 0 | X10: 0 | Y10: 334000000000000 | Z10: INVERSION | AA10: 0 | AB10: 0 | AC10: 0 | AD10: 0 | AE10: 0 | AF10: 0 | AG10: 0 | AH10: 0 | AI10: 0 | AJ10: 0 | AK10: 334000000000000 | AL10: INVERSION | AM10: 421605984018 | AN10: 0 | AO10: 0 | AP10: 421605984018 | AQ10: 71975246521 | AR10: 394951462946 | AS10: 0.9367785988 | AT10: -71975246521 | AU10: 26345084234 | AV10: 309436838
A11: 334010000000000 | B11: DIRECTA | C11: 382346750258 | D11: 0 | E11: 0 | F11: 382346750258 | G11: 56343962097 | H11: 355692229186 | I11: 0.9302870469 | J11: -56343962097 | K11: 26345084234 | L11: 309436838 | M11: 334010000000000 | N11: DIRECTA | O11: 39259233760 | P11: 0 | Q11: 0 | R11: 39259233760 | S11: 15631284424 | T11: 39259233760 | U11: 1 | V11: -15631284424 | W11: 0 | X11: 0 | Y11: 334010000000000 | Z11: DIRECTA | AA11: 0 | AB11: 0 | AC11: 0 | AD11: 0 | AE11: 0 | AF11: 0 | AG11: 0 | AH11: 0 | AI11: 0 | AJ11: 0 | AK11: 334010000000000 | AL11: DIRECTA | AM11: 421605984018 | AN11: 0 | AO11: 0 | AP11: 421605984018 | AQ11: 71975246521 | AR11: 394951462946 | AS11: 0.9367785988 | AT11: -71975246521 | AU11: 26345084234 | AV11: 309436838
A12: 334011500000000 | B12: BOGOTÁ MEJOR PARA TODOS | C12: =C13+C25 -> 382346750258 | D12: 0 | E12: 0 | F12: 382346750258 | G12: 56343962097 | H12: 355692229186 | I12: 0.9302870469 | J12: =J13+J25 -> -56343962097 | K12: =K13+K25 -> 26345084234 | L12: =L13+L25 -> 309436838 | M12: 334011500000000 | N12: BOGOTÁ MEJOR PARA TODOS | O12: =O13+O25 -> 39259233760 | P12: 0 | Q12: 0 | R12: 39259233760 | S12: 15631284424 | T12: 39259233760 | U12: 1 | V12: =V13+V25 -> -15631284424 | W12: =W13+W25 -> 0 | X12: =X13+X25 -> 0 | Y12: 334011500000000 | Z12: BOGOTÁ MEJOR PARA TODOS | AA12: 0 | AB12: 0 | AC12: 0 | AD12: 0 | AE12: 0 | AF12: 0 | AG12: =AF12/AD12 ->  | AH12: 0 | AI12: 0 | AJ12: 0 | AK12: 334011500000000 | AL12: BOGOTÁ MEJOR PARA TODOS | AM12: =AM13+AM25 -> 421605984018 | AN12: 0 | AO12: 0 | AP12: 421605984018 | AQ12: 71975246521 | AR12: 394951462946 | AS12: 0.9367785988 | AT12: =AT13+AT25 -> -71975246521 | AU12: =AU13+AU25 -> 26345084234 | AV12: =AV13+AV25 -> 309436838
A13: 334011502000000 | B13: PILAR DEMOCRACIA URBANA | C13: =C14 -> 376659234239 | D13: 0 | E13: 0 | F13: 376659234239 | G13: 53278894917 | H13: 352627162006 | I13: 0.9361967793 | J13: =J14 -> -53278894917 | K13: 24032072232 | L13: 1 | M13: 334011502000000 | N13: PILAR DEMOCRACIA URBANA | O13: =O14 -> 39259233760 | P13: 0 | Q13: 0 | R13: 39259233760 | S13: 15631284424 | T13: 39259233760 | U13: 1 | V13: =V14 -> -15631284424 | W13: 0 | X13: 0 | Y13: 334011502000000 | Z13: PILAR DEMOCRACIA URBANA | AA13: 0 | AB13: 0 | AC13: 0 | AD13: 0 | AE13: 0 | AF13: 0 | AG13: =AF13/AD13 ->  | AH13: 0 | AI13: 0 | AJ13: 0 | AK13: 334011502000000 | AL13: PILAR DEMOCRACIA URBANA | AM13: =AM14 -> 415918467999 | AN13: 0 | AO13: 0 | AP13: 415918467999 | AQ13: 68910179341 | AR13: 391886395766 | AS13: 0.9422192711 | AT13: =AT14 -> -68910179341 | AU13: 24032072232 | AV13: 1
A14: 334011502130000 | B14: INFRAESTRUCTURA PARA EL DESARROLLO DEL HÁBITAT. | C14: 376659234239 | D14: 0 | E14: 0 | F14: 376659234239 | G14: 53278894917 | H14: 352627162006 | I14: 0.9361967793 | J14: -53278894917 | K14: 24032072232 | L14: =L15 -> 1 | M14: 334011502130000 | N14: INFRAESTRUCTURA PARA EL DESARROLLO DEL HÁBITAT. | O14: 39259233760 | P14: 0 | Q14: 0 | R14: 39259233760 | S14: 15631284424 | T14: 39259233760 | U14: 1 | V14: -15631284424 | W14: 0 | X14: =X15 -> 0 | Y14: 334011502130000 | Z14: INFRAESTRUCTURA PARA EL DESARROLLO DEL HÁBITAT. | AA14: 0 | AB14: 0 | AC14: 0 | AD14: 0 | AE14: 0 | AF14: 0 | AH14: 0 | AI14: 0 | AJ14: 0 | AK14: 334011502130000 | AL14: INFRAESTRUCTURA PARA EL DESARROLLO DEL HÁBITAT. | AM14: 415918467999 | AN14: 0 | AO14: 0 | AP14: 415918467999 | AQ14: 68910179341 | AR14: 391886395766 | AS14: 0.9422192711 | AT14: -68910179341 | AU14: 24032072232 | AV14: 1
A15: 334011502130133 | B15: INFRAESTRUCTURA PARA EL DESARROLLO DEL HÁBITAT. | C15: =SUM(C16:C24) -> 376659234239 | D15: 0 | E15: 0 | F15: 376659234239 | G15: 53278894917 | H15: 352627162006 | I15: 0.9361967793 | J15: =SUM(J16:J24) -> -53278894917 | K15: =SUM(K16:K24) -> 24032072232 | L15: =SUM(L16:L24) -> 1 | M15: 334011502130133 | N15: INFRAESTRUCTURA PARA EL DESARROLLO DEL HÁBITAT. | O15: =SUM(O16:O24) -> 39259233760 | P15: 0 | Q15: 0 | R15: 39259233760 | S15: 15631284424 | T15: 39259233760 | U15: 1 | V15: =SUM(V16:V24) -> -15631284424 | W15: =SUM(W16:W24) -> 0 | X15: =SUM(X16:X24) -> 0 | Y15: 334011502130133 | Z15: INFRAESTRUCTURA PARA EL DESARROLLO DEL HÁBITAT. | AA15: =SUM(AA16:AA29) -> 0 | AB15: 0 | AC15: 0 | AD15: 0 | AE15: 0 | AF15: 0 | AH15: =SUM(AH16:AH29) -> 0 | AI15: =SUM(AI16:AI29) -> 0 | AJ15: =SUM(AJ16:AJ29) -> 0 | AK15: 334011502130133 | AL15: INFRAESTRUCTURA PARA EL DESARROLLO DEL HÁBITAT. | AM15: =SUM(AM16:AM24) -> 415918467999 | AN15: 0 | AO15: 0 | AP15: 415918467999 | AQ15: 68910179341 | AR15: 391886395766 | AS15: 0.9422192711 | AT15: =SUM(AT16:AT24) -> -68910179341 | AU15: =SUM(AU16:AU24) -> 24032072232 | AV15: =SUM(AV16:AV24) -> 1
A16: 334011502130133000019 | B16: CONST. REDES LOCALES SERVICIO DE ALCANTARILLADO PLUVIAL | C16: 11668762025 | F16: 11668762025 | G16: 7349527016 | H16: 11156590792 | I16: 0.9561074918 | J16: -7349527016 | K16: 512171233 | M16: 334011502130133000019 | N16: CONST. REDES LOCALES SERVICIO DE ALCANTARILLADO PLUVIAL | O16: 5275090598 | R16: 5275090598 | S16: 5275090598 | T16: 5275090598 | U16: 1 | V16: -5275090598 | Y16: 334011502130133000019 | Z16: CONST. REDES LOCALES SERVICIO DE ALCANTARILLADO PLUVIAL | AA16: 0 | AB16: 0 | AC16: 0 | AD16: 0 | AE16: 0 | AF16: 0 | AG16: 0 | AH16: 0 | AI16: 0 | AJ16: 0 | AK16: 334011502130133000019 | AL16: CONST. REDES LOCALES SERVICIO DE ALCANTARILLADO PLUVIAL | AM16: 16943852623 | AP16: 16943852623 | AQ16: 12624617614 | AR16: 16431681390 | AS16: 0.9697724452 | AT16: -12624617614 | AU16: 512171233
A17: 334011502130133000020 | B17: CONST. REDES LOCALES SERVICIO DE ALCANTARILLADO SANITARIO | C17: 14636414189 | F17: 14636414189 | G17: 10272945313 | H17: 10272945313 | I17: =H17/F17 -> 0.701875827 | J17: -10272945313 | K17: 4363468876 | M17: 334011502130133000020 | N17: CONST. REDES LOCALES SERVICIO DE ALCANTARILLADO SANITARIO | O17: 7487307593 | R17: 7487307593 | S17: 7487307593 | T17: 7487307593 | U17: 1 | V17: -7487307593 | Y17: 334011502130133000020 | Z17: CONST. REDES LOCALES SERVICIO DE ALCANTARILLADO SANITARIO | AA17: 0 | AB17: 0 | AC17: 0 | AD17: 0 | AE17: 0 | AF17: 0 | AG17: 0 | AH17: 0 | AI17: 0 | AJ17: 0 | AK17: 334011502130133000020 | AL17: CONST. REDES LOCALES SERVICIO DE ALCANTARILLADO SANITARIO | AM17: 22123721782 | AP17: 22123721782 | AQ17: 17760252906 | AR17: 17760252906 | AS17: 0.8027696732 | AT17: -17760252906 | AU17: 4363468876
A18: 334011502130133000050 | B18: REN, REHAB O REP SIST ABAST, DIST MATRIZ Y RED LOCAL AC. | C18: 203261089828 | F18: 203261089828 | H18: 201945486528 | I18: 0.9935275202 | K18: 1315603300 | M18: 334011502130133000050 | N18: REN, REHAB O REP SIST ABAST, DIST MATRIZ Y RED LOCAL AC. | O18: 23627949336 | R18: 23627949336 | T18: 23627949336 | U18: 1 | Y18: 334011502130133000050 | Z18: REN, REHAB O REP SIST ABAST, DIST MATRIZ Y RED LOCAL AC. | AA18: 0 | AB18: 0 | AC18: 0 | AD18: 0 | AE18: 0 | AF18: 0 | AH18: 0 | AI18: 0 | AJ18: 0 | AK18: 334011502130133000050 | AL18: REN, REHAB O REP SIST ABAST, DIST MATRIZ Y RED LOCAL AC. | AM18: 226889039164 | AP18: 226889039164 | AR18: 225573435864 | AS18: 0.9942015564 | AU18: 1315603300
A19: 334011502130133000051 | B19: REN, REHAB O REP SIST TRONCAL SECUNDARIO Y LOCAL ALC. SANITA | C19: 39298907867 | F19: 39298907867 | G19: 15109951724 | H19: 31698010331 | I19: 0.8065875632 | J19: -15109951724 | K19: 7600897536 | M19: 334011502130133000051 | N19: REN, REHAB O REP SIST TRONCAL SECUNDARIO Y LOCAL ALC. SANITA | O19: 0 | P19: 0 | Q19: 0 | R19: 0 | S19: 0 | T19: 0 | U19: 0 | V19: 0 | W19: 0 | X19: 0 | Y19: 334011502130133000051 | Z19: REN, REHAB O REP SIST TRONCAL SECUNDARIO Y LOCAL ALC. SANITA | AA19: 0 | AB19: 0 | AC19: 0 | AD19: 0 | AE19: 0 | AF19: 0 | AG19: 0 | AH19: 0 | AI19: 0 | AJ19: 0 | AK19: 334011502130133000051 | AL19: REN, REHAB O REP SIST TRONCAL SECUNDARIO Y LOCAL ALC. SANITA | AM19: 39298907867 | AP19: 39298907867 | AQ19: 15109951724 | AR19: 31698010331 | AS19: 0.8065875632 | AT19: -15109951724 | AU19: 7600897536
A20: 334011502130133000052 | B20: REN REHAB O REP SIST TRONCAL SECUNDARIO Y LOCAL ALC. PLUVIAL | C20: 14427013747 | F20: 14427013747 | G20: 9242782635 | H20: 12383093316 | I20: 0.8583268536 | J20: -9242782635 | K20: 2043920430 | L20: 1 | M20: 334011502130133000052 | N20: REN REHAB O REP SIST TRONCAL SECUNDARIO Y LOCAL ALC. PLUVIAL | O20: 0 | P20: 0 | Q20: 0 | R20: 0 | S20: 0 | T20: 0 | U20: 0 | V20: 0 | W20: 0 | X20: 0 | Y20: 334011502130133000052 | Z20: REN REHAB O REP SIST TRONCAL SECUNDARIO Y LOCAL ALC. PLUVIAL | AA20: 0 | AB20: 0 | AC20: 0 | AD20: 0 | AE20: 0 | AF20: 0 | AG20: 0 | AH20: 0 | AI20: 0 | AJ20: 0 | AK20: 334011502130133000052 | AL20: REN REHAB O REP SIST TRONCAL SECUNDARIO Y LOCAL ALC. PLUVIAL | AM20: 14427013747 | AP20: 14427013747 | AQ20: 9242782635 | AR20: 12383093316 | AS20: 0.8583268536 | AT20: -9242782635 | AU20: 2043920430 | AV20: 1
A21: 334011502130133000054 | B21: ACCIONES PARA EL SANEAMIENTO DEL RÍO BOGOTÁ | C21: 65381426116 | F21: 65381426116 | H21: 65381426116 | I21: 1 | M21: 334011502130133000054 | N21: ACCIONES PARA EL SANEAMIENTO DEL RÍO BOGOTÁ | O21: 0 | P21: 0 | Q21: 0 | R21: 0 | S21: 0 | T21: 0 | U21: 0 | V21: 0 | W21: 0 | X21: 0 | Y21: 334011502130133000054 | Z21: ACCIONES PARA EL SANEAMIENTO DEL RÍO BOGOTÁ | AA21: 0 | AB21: 0 | AC21: 0 | AD21: 0 | AE21: 0 | AF21: 0 | AG21: 0 | AH21: 0 | AI21: 0 | AJ21: 0 | AK21: 334011502130133000054 | AL21: ACCIONES PARA EL SANEAMIENTO DEL RÍO BOGOTÁ | AM21: 65381426116 | AP21: 65381426116 | AR21: 65381426116 | AS21: 1
A22: 334011502130133000068 | B22: CONST, REN, REHAB O REP REDES ASOCIADAS INFRAESTRUCTURA VIAL | C22: 10754705083 | F22: 10754705083 | H22: 3318821982 | I22: 0.3085925608 | K22: 7435883101 | M22: 334011502130133000068 | N22: CONST, REN, REHAB O REP REDES ASOCIADAS INFRAESTRUCTURA VIAL | O22: 0 | P22: 0 | Q22: 0 | R22: 0 | S22: 0 | T22: 0 | U22: 0 | V22: 0 | W22: 0 | X22: 0 | Y22: 334011502130133000068 | Z22: CONST, REN, REHAB O REP REDES ASOCIADAS INFRAESTRUCTURA VIAL | AA22: 0 | AB22: 0 | AC22: 0 | AD22: 0 | AE22: 0 | AF22: 0 | AG22: 0 | AH22: 0 | AI22: 0 | AJ22: 0 | AK22: 334011502130133000068 | AL22: CONST, REN, REHAB O REP REDES ASOCIADAS INFRAESTRUCTURA VIAL | AM22: 10754705083 | AP22: 10754705083 | AR22: 3318821982 | AS22: 0.3085925608 | AU22: 7435883101
A23: 334011502130133007334 | B23: CONST Y EXPANSIÓN DEL SISTEMA DE ABASTECIMIENTO Y MATRIZ AC. | C23: 13433170360 | F23: 13433170360 | G23: 7505943205 | H23: 12673042604 | I23: =H23/F23 -> 0.9434141207 | J23: -7505943205 | K23: 760127756 | M23: 334011502130133007334 | N23: CONST Y EXPANSIÓN DEL SISTEMA DE ABASTECIMIENTO Y MATRIZ AC. | O23: 0 | P23: 0 | Q23: 0 | R23: 0 | S23: 0 | T23: 0 | U23: 0 | V23: 0 | W23: 0 | X23: 0 | Y23: 334011502130133007334 | Z23: CONST Y EXPANSIÓN DEL SISTEMA DE ABASTECIMIENTO Y MATRIZ AC. | AA23: 0 | AB23: 0 | AC23: 0 | AD23: 0 | AE23: 0 | AF23: 0 | AG23: 0 | AH23: 0 | AI23: 0 | AJ23: 0 | AK23: 334011502130133007334 | AL23: CONST Y EXPANSIÓN DEL SISTEMA DE ABASTECIMIENTO Y MATRIZ AC. | AM23: 13433170360 | AP23: 13433170360 | AQ23: 7505943205 | AR23: 12673042604 | AS23: =AR23/AP23 -> 0.9434141207 | AT23: -7505943205 | AU23: 760127756
A24: 334011502130133007338 | B24: CONSTRUCCIÓN DE REDES LOCALES PARA EL SERVICIO DE ACUEDUCTO | C24: 3797745024 | F24: 3797745024 | G24: 3797745024 | H24: 3797745024 | I24: 1 | J24: -3797745024 | M24: 334011502130133007338 | N24: CONSTRUCCIÓN DE REDES LOCALES PARA EL SERVICIO DE ACUEDUCTO | O24: 2868886233 | R24: 2868886233 | S24: 2868886233 | T24: 2868886233 | U24: 1 | V24: -2868886233 | Y24: 334011502130133007338 | Z24: CONSTRUCCIÓN DE REDES LOCALES PARA EL SERVICIO DE ACUEDUCTO | AA24: 0 | AB24: 0 | AC24: 0 | AD24: 0 | AE24: 0 | AF24: 0 | AG24: 0 | AH24: 0 | AI24: 0 | AJ24: 0 | AK24: 334011502130133007338 | AL24: CONSTRUCCIÓN DE REDES LOCALES PARA EL SERVICIO DE ACUEDUCTO | AM24: 6666631257 | AP24: 6666631257 | AQ24: 6666631257 | AR24: 6666631257 | AS24: =AR24/AP24 -> 1 | AT24: -6666631257
A25: 334011506000000 | B25: Eje Transversal 3 Sostenibilidad Ambiental Basada en la Eficiencia Energética. | C25: =C26+C28 -> 5687516019 | D25: 0 | E25: 0 | F25: 5687516019 | G25: 3065067180 | H25: =H26+H28 -> 3065067180 | I25: 0.5389113929 | J25: =J26+J28 -> -3065067180 | K25: 2313012002 | L25: 309436837 | M25: 334011506000000 | N25: Eje Transversal 3 Sostenibilidad Ambiental Basada en la Eficiencia Energética. | O25: =O26+O28 -> 0 | P25: 0 | Q25: 0 | R25: 0 | S25: 0 | T25: =T26+T28 -> 0 | U25: 0 | V25: =V26+V28 -> 0 | W25: 0 | X25: 0 | AK25: 334011506000000 | AL25: Eje Transversal 3 Sostenibilidad Ambiental Basada en la Eficiencia Energética. | AM25: =AM26+AM28 -> 5687516019 | AN25: =AN26+AN28 -> 0 | AO25: 0 | AP25: 5687516019 | AQ25: 3065067180 | AR25: 3065067180 | AS25: =AR25/AP25 -> 0.5389113929 | AT25: =AT26+AT28 -> -3065067180 | AU25: 2313012002 | AV25: 309436837
A26: 334011506380000 | B26: Recuperación y manejo de la Estructura Ecológica Principal | C26: =C27 -> 764011757 | D26: 0 | E26: 0 | F26: 764011757 | G26: 0 | H26: 0 | I26: 0 | J26: =J27 -> 0 | K26: 764011757 | L26: 0 | M26: 334011506380000 | N26: Recuperación y manejo de la Estructura Ecológica Principal | O26: =O27 -> 0 | P26: 0 | Q26: 0 | R26: 0 | S26: 0 | T26: 0 | U26: 0 | V26: =V27 -> 0 | W26: 0 | X26: 0 | AK26: 334011506380000 | AL26: Recuperación y manejo de la Estructura Ecológica Principal | AM26: =AM27 -> 764011757 | AN26: =AN27 -> 0 | AO26: 0 | AP26: 764011757 | AQ26: 0 | AR26: 0 | AS26: 0 | AT26: =AT27 -> 0 | AU26: 764011757 | AV26: 0
A27: 334011506380177007341 | B27: ADECUACIÓN HIDRÁULICA Y RECUPERACIÓN AMBIENTAL DE HUMEDALES, | C27: 764011757 | F27: 764011757 | I27: =H27/F27 -> 0 | K27: 764011757 | M27: 334011506380177007341 | N27: ADECUACIÓN HIDRÁULICA Y RECUPERACIÓN AMBIENTAL DE HUMEDALES, | O27: 0 | P27: 0 | Q27: 0 | R27: 0 | S27: 0 | T27: 0 | U27: 0 | V27: 0 | W27: 0 | X27: =R27-T27-W27 -> 0 | Y27: 334011506380177007341 | Z27: ADECUACIÓN HIDRÁULICA Y RECUPERACIÓN AMBIENTAL DE HUMEDALES, | AA27: 0 | AB27: 0 | AC27: 0 | AD27: 0 | AE27: 0 | AF27: 0 | AG27: 0 | AH27: 0 | AI27: 0 | AJ27: 0 | AK27: 334011506380177007341 | AL27: ADECUACIÓN HIDRÁULICA Y RECUPERACIÓN AMBIENTAL DE HUMEDALES, | AM27: 764011757 | AP27: 764011757 | AS27: =AR27/AP27 -> 0 | AU27: 764011757
A28: 334011506390179 | B28: Ambiente Sano | C28: =C29 -> 4923504262 | D28: 0 | E28: 0 | F28: 4923504262 | G28: 3065067180 | H28: 3065067180 | I28: 0.6225377327 | J28: =J29 -> -3065067180 | K28: 1549000245 | L28: 309436837 | M28: 334011506390179 | N28: Ambiente Sano | O28: =O29 -> 0 | P28: 0 | Q28: 0 | R28: 0 | S28: 0 | T28: 0 | U28: 0 | V28: =V29 -> 0 | W28: 0 | X28: 0 | AK28: 334011506390179 | AL28: Ambiente Sano | AM28: =AM29 -> 4923504262 | AN28: =AN29 -> 0 | AO28: 0 | AP28: 4923504262 | AQ28: 3065067180 | AR28: 3065067180 | AS28: =AR28/AP28 -> 0.6225377327 | AT28: =AT29 -> -3065067180 | AU28: 1549000245 | AV28: 309436837
A29: 334011506390179000082 | B29: PLAN DE SANEAMIENTO Y MANEJO DE VERTIMIENTOS | C29: 4923504262 | F29: 4923504262 | G29: 3065067180 | H29: 3065067180 | I29: =H29/F29 -> 0.6225377327 | J29: -3065067180 | K29: 1549000245 | L29: 309436837 | M29: 334011506390179000082 | N29: PLAN DE SANEAMIENTO Y MANEJO DE VERTIMIENTOS | O29: 0 | P29: 0 | Q29: 0 | R29: 0 | S29: 0 | T29: 0 | U29: 0 | V29: 0 | W29: 0 | X29: =R29-T29-W29 -> 0 | Y29: 334011506390179000082 | Z29: PLAN DE SANEAMIENTO Y MANEJO DE VERTIMIENTOS | AA29: 0 | AB29: 0 | AC29: 0 | AD29: 0 | AE29: 0 | AF29: 0 | AG29: 0 | AH29: 0 | AI29: 0 | AJ29: 0 | AK29: 334011506390179000082 | AL29: PLAN DE SANEAMIENTO Y MANEJO DE VERTIMIENTOS | AM29: 4923504262 | AP29: 4923504262 | AQ29: 3065067180 | AR29: 3065067180 | AS29: =AR29/AP29 -> 0.6225377327 | AT29: -3065067180 | AU29: 1549000245 | AV29: 309436837
